fUSD/lending_fUSD_20240326
["ID","MTS","AMOUNT","RATE_DAILY","PERIOD"]
[320528460,1711416637903,-208.90858084,0.00049624,120]
[320528461,1711416637913,-319.34379226,0.00049626,120]
[320528462,1711416637922,-6164.08351827,0.00049633,120]
[320528463,1711416637931,-6164.08351827,0.00049634,120]
[320528464,1711416637940,-319.34379226,0.00049634,120]
[320528465,1711416637952,-208.90858084,0.00049638,120]
[320528466,1711416637962,-208.90858084,0.00049639,120]
[320528467,1711416637971,-196.46962749,0.00049646,2]
[320528468,1711416637980,-82636.78003965,0.00049649,120]
[320528469,1711416637989,-319.34379226,0.00049649,120]
[320528471,1711416637998,-811.39202841,0.00049661,120]
[320528473,1711416638008,-208.90858084,0.00049663,120]
[320528475,1711416638018,-82636.78003965,0.00049666,120]
[320528477,1711416638027,-319.34379226,0.00049671,120]
[320528479,1711416638036,-208.90858084,0.00049674,120]
[320528481,1711416638045,-319.34379226,0.00049678,120]
[320528482,1711416638054,-208.90858084,0.00049679,120]
[320528484,1711416638064,-319.34379226,0.00049685,120]
[320528485,1711416638073,-243.88,0.00049688,2]
[320528486,1711416638082,-319.34379226,0.00049691,120]
[320528487,1711416638091,-157.032609,0.00049698,78]
[320528488,1711416638101,-100000.0,0.000497,2]
[320528489,1711416638109,-320.16955393,0.00049789,2]
[320528490,1711416638119,-357.5072304,0.00049793,2]
[320528491,1711416638128,-9638.4096836,0.00049793,2]
[320528492,1711416638137,-7396.2760381,0.00049794,2]
[320528493,1711416638146,-261.97520813,0.00049799,5]
[320528494,1711416638155,-500.0,0.000498,7]
[320528495,1711416638164,-758.5144,0.000498,2]
[320528496,1711416638173,-619.75219655,0.000498,4]
[320528497,1711416638183,-1819.14020629,0.000498,120]
[320528498,1711416638192,-381.6636848,0.000498,61]
[320528499,1711416638201,-360.6,0.000498,4]
[320528500,1711416638210,-2000.0,0.000498,7]
[320528501,1711416638220,-200.0,0.000498,7]
[320528502,1711416638230,-18264.87923317,0.000498,120]
[320528503,1711416638239,-2000.0,0.000498,7]
[320528504,1711416638248,-200.0,0.000498,7]
[320528505,1711416638257,-270.896374,0.000498,2]
[320528506,1711416638267,-157.66,0.00049828,2]
[320528507,1711416638276,-1109.0602673,0.00049853,4]
[320528508,1711416638285,-2000.0,0.00049863,120]
[320528509,1711416638294,-2000.0,0.00049863,120]
[320528510,1711416638303,-2000.0,0.00049863,120]
[320528511,1711416638314,-2000.0,0.00049863,120]
[320528512,1711416638323,-2000.0,0.00049863,120]
[320528513,1711416638331,-2000.0,0.00049863,120]
[320528514,1711416638341,-2000.0,0.00049863,120]
[320528515,1711416638350,-2000.0,0.00049863,120]
[320528516,1711416638363,-2000.0,0.00049863,120]
[320528517,1711416638372,-2000.0,0.00049863,120]
[320528518,1711416638382,-2000.0,0.00049863,120]
[320528519,1711416638391,-2000.0,0.00049863,120]
[320528520,1711416638400,-2000.0,0.00049863,120]
[320528521,1711416638410,-2000.0,0.00049863,120]
[320528522,1711416638419,-2000.0,0.00049863,120]
[320528523,1711416638428,-2000.0,0.00049863,120]
[320528524,1711416638437,-2000.0,0.00049863,120]
[320528525,1711416638448,-2000.0,0.00049863,120]
[320528526,1711416638457,-2000.0,0.00049863,120]
[320528527,1711416638466,-2000.0,0.00049863,120]
[320528528,1711416638476,-2000.0,0.00049863,120]
[320528529,1711416638485,-2000.0,0.00049863,120]
[320528530,1711416638495,-2000.0,0.00049863,120]
[320528531,1711416638505,-753.88068725,0.00049863,120]
[320528532,1711416638515,-328.03316117,0.00049873,4]
[320528533,1711416638525,-157.66,0.00049877,2]
[320528534,1711416638535,-2146.67685668,0.00049898,4]
[320528535,1711416638544,-161.032609,0.00049898,79]
[320528536,1711416638554,-155.55177531,0.00049899,4]
[320528537,1711416638563,-6319.49999999,0.00049899,4]
[320528538,1711416638572,-613.92832338,0.00049899,4]
[320528539,1711416638581,-500.0,0.00049899,120]
[320528540,1711416638591,-500.0,0.00049899,120]
[320528541,1711416638600,-500.0,0.00049899,120]
[320528542,1711416638610,-500.0,0.00049899,120]
[320528543,1711416638619,-500.0,0.00049899,120]
[320528544,1711416638628,-500.0,0.00049899,120]
[320528545,1711416638639,-500.0,0.00049899,120]
[320528546,1711416638650,-500.0,0.00049899,120]
[320528547,1711416638659,-500.0,0.00049899,120]
[320528548,1711416638669,-500.0,0.00049899,120]
[320528549,1711416638678,-500.0,0.00049899,120]
[320528550,1711416638690,-500.0,0.00049899,120]
[320528551,1711416638698,-500.0,0.00049899,120]
[320528552,1711416638708,-500.0,0.00049899,120]
[320528553,1711416638718,-500.0,0.00049899,120]
[320528554,1711416638727,-500.0,0.00049899,120]
[320528555,1711416638736,-488.36936359,0.00049899,120]
[320528556,1711416638745,-91495.52716978,0.000499,15]
[320528557,1711416638755,-157.66,0.00049927,2]
[320528558,1711416638765,-157.66,0.00049976,2]
[320528559,1711416638774,-161.032609,0.00049998,80]
[320528560,1711416638783,-1530.0,0.0005,120]
[320528561,1711416638793,-280.36350127,0.0005,2]
[320528562,1711416638802,-114.5707151,0.0005,120]
[320528569,1711416639526,-1920.4992849,0.0005,120]
[320528570,1711416639535,-370.0,0.0005,15]
[320528571,1711416639545,-1010.11634405,0.0005,120]
[320528572,1711416639554,-157.66,0.00050026,2]
[320528573,1711416639564,-157.66,0.00050076,2]
[320528574,1711416639576,-320.16955393,0.00050233,2]
[320528575,1711416639585,-1009.96346618,0.00050298,7]
[320528576,1711416639600,-990.03653382,0.00050298,7]
[320528577,1711416639609,-200.0,0.00050298,7]
[320528578,1711416639618,-2000.0,0.00050298,7]
[320528579,1711416639627,-200.0,0.00050298,7]
[320528580,1711416639636,-2000.0,0.000505,120]
[320528581,1711416639645,-153.35,0.00050623,2]
[320528582,1711416639654,-151.0,0.00050653,30]
[320528583,1711416639664,-320.16955393,0.00050678,2]
[320528584,1711416639673,-151.0,0.00050685,120]
[320528585,1711416639682,-325.28,0.00050692,120]
[320528586,1711416639691,-2000.0,0.00050801,7]
[320528587,1711416639700,-200.0,0.00050801,7]
[320528588,1711416639709,-2000.0,0.00050801,7]
[320528589,1711416639719,-155.0,0.00050898,4]
[320528590,1711416639728,-1124.56070773,0.00050898,4]
[320528591,1711416639738,-578.71213299,0.00050898,4]
[320528592,1711416639747,-1565.02176273,0.00050898,4]
[320528593,1711416639766,-314.99222468,0.00050898,4]
[320528594,1711416639777,-310.0,0.00050898,4]
[320528595,1711416639787,-155.0,0.00050898,4]
[320528596,1711416639797,-658.74639374,0.00050898,4]
[320528597,1711416639806,-624.1329573,0.00050898,4]
[320528598,1711416639817,-157.032609,0.00050898,88]
[320528599,1711416639826,-155.75252776,0.00050899,4]
[320528600,1711416639835,-1013.65473484,0.00050899,4]
[320528601,1711416639846,-67831.10327865,0.000509,30]
[320528602,1711416640825,-1744.41366027,0.000493,46]
[320528603,1711416640838,-81.39565973,0.000493,46]
[320528604,1711416640848,-200.0,0.00049431,2]
[320528605,1711416640857,-811.39202841,0.00049605,120]
[320528606,1711416640867,-737.54767344,0.00049608,120]
[320528607,1711416640879,-73.84435497,0.00049608,120]
[320528608,1711416640889,-494.53040704,0.00049608,120]
[320528609,1711416640901,-316.86162137,0.00049608,120]
[320528610,1711416640911,-811.39202841,0.00049611,120]
[320528611,1711416640922,-811.39202841,0.00049617,120]
[320528612,1711416640932,-44.64088432,0.00049664,120]
[320528613,1711416640945,-766.75114409,0.00049664,120]
[320528614,1711416640956,-2162.80293604,0.000509,30]
[320528615,1711416640967,-931.37756519,0.000509,120]
[320528616,1711416641805,-209.43263818,0.00049783,7]
[320528617,1711416641814,-779.45039537,0.000509,120]
[320528618,1711416641935,-2367.82453067,0.000509,120]
[320528619,1711416641944,-4078.65249123,0.000509,120]
[320528620,1711416641954,-4078.65249123,0.000509,120]
[320528621,1711416641963,-4078.65249123,0.000509,120]
[320528622,1711416641973,-4078.65249123,0.000509,120]
[320528623,1711416641982,-4078.65249123,0.000509,120]
[320528624,1711416641993,-4078.65249123,0.000509,120]
[320528625,1711416642002,-4078.65249123,0.000509,120]
[320528626,1711416642011,-4078.65249123,0.000509,120]
[320528627,1711416642021,-345.78405503,0.000509,120]
[320528631,1711416642919,-3732.8684362,0.000509,120]
[320528632,1711416642930,-4078.65249123,0.000509,120]
[320528633,1711416642941,-4078.65249123,0.000509,120]
[320528634,1711416642951,-4078.65249123,0.000509,120]
[320528635,1711416642962,-151.0,0.000509,120]
[320528636,1711416642973,-228.146621,0.000509,30]
[320528637,1711416642983,-2000.0,0.00051,120]
[320528638,1711416642995,-5227.38221576,0.00051,120]
[320528639,1711416643005,-300.00000004,0.00051,51]
[320528640,1711416643015,-2000.0,0.00051,120]
[320528641,1711416643025,-412.0,0.0005104,7]
[320528642,1711416643034,-152.0,0.00051054,5]
[320528643,1711416643044,-523.0,0.00051069,60]
[320528644,1711416643054,-320.16955393,0.00051122,2]
[320528645,1711416643064,-153.35,0.0005113,2]
[320528646,1711416643076,-150.0,0.00051147,7]
[320528647,1711416643086,-4078.65249123,0.00051151,120]
[320528648,1711416643096,-409.88,0.000512,30]
[320528649,1711416643106,-200.0,0.00051309,7]
[320528650,1711416643116,-2000.0,0.00051309,7]
[320528651,1711416643125,-16335.59320815,0.00051393,120]
[320528652,1711416643181,-250.68822739,0.00051393,120]
[320528653,1711416643194,-6615.23502887,0.00051393,120]
[320528654,1711416643308,-4029.96000001,0.00051393,120]
[320528660,1711416645761,-1750.6,0.00049612,120]
[320528661,1711416645867,-464.67386929,0.00049612,120]
[320528662,1711416645993,-306.81644664,0.00049612,120]
[320528663,1711416646002,-412.46081001,0.00049633,120]
[320528664,1711416646100,-2109.62950592,0.00049633,120]
[320528665,1711416646109,-2522.09031593,0.00049644,120]
[320528666,1711416646119,-2522.09031593,0.00049647,120]
[320528667,1711416646128,-2522.09031593,0.00049661,120]
[320528668,1711416646137,-2522.09031593,0.00049668,120]
[320528669,1711416646147,-2522.09031593,0.0004969,120]
[320528670,1711416646155,-175.68312412,0.00050899,4]
[320528671,1711416646165,-18935.81257344,0.00051393,120]
[320528672,1711416646174,-151.0,0.00051393,120]
[320528673,1711416646183,-151.0,0.00051393,120]
[320528674,1711416646193,-169.762465,0.00051393,120]
[320528675,1711416646203,-151.0,0.00051393,120]
[320528676,1711416646212,-151.0,0.00051393,120]
[320528677,1711416646221,-151.0,0.00051393,120]
[320528678,1711416646231,-151.0,0.00051393,120]
[320528679,1711416646240,-151.0,0.00051393,120]
[320528680,1711416646250,-151.0,0.00051393,30]
[320528681,1711416646259,-151.0,0.00051393,120]
[320528682,1711416646268,-151.0,0.00051393,120]
[320528683,1711416646277,-151.0,0.00051393,120]
[320528684,1711416646287,-151.0,0.00051393,120]
[320528685,1711416646295,-226.191634,0.00051393,120]
[320528686,1711416646305,-188.79441783,0.00051428,2]
[320528687,1711416646314,-297.72685603,0.0005148,60]
[320528688,1711416646410,-225.27314397,0.0005148,60]
[320528689,1711416646420,-150.0,0.00051489,120]
[320528690,1711416646430,-161.032609,0.00051498,86]
[320528691,1711416646443,-10000.0,0.000515,120]
[320528692,1711416646462,-2000.0,0.000515,120]
[320528693,1711416646473,-2000.0,0.000515,120]
[320528694,1711416646483,-3945.41,0.00051506,120]
[320528695,1711416646492,-3945.41,0.00051506,120]
[320528696,1711416646501,-296.79548759,0.00051531,120]
[320528697,1711416646511,-203.97,0.00051531,2]
[320528698,1711416646520,-164.7629383,0.00051532,3]
[320528699,1711416646530,-4078.65249123,0.00051552,120]
[320528700,1711416646539,-320.16955393,0.00051567,2]
[320528701,1711416646548,-200.0,0.00051587,2]
[320528702,1711416646558,-150.0,0.00051587,7]
[320528703,1711416646569,-200.0,0.00051637,30]
[320528704,1711416646579,-800.0,0.00051637,30]
[320528705,1711416646589,-800.0,0.00051637,30]
[320528706,1711416646599,-200.0,0.00051637,30]
[320528707,1711416646608,-800.0,0.00051637,30]
[320528708,1711416646617,-621.0,0.00051688,30]
[320528709,1711416646627,-292.0,0.00051688,30]
[320528710,1711416646636,-150.0,0.00051792,7]
[320528711,1711416646645,-500.0,0.00051793,2]
[320528712,1711416646655,-407.93480649,0.00051793,2]
[320528718,1711417044894,166.66666667,0.00022029,2]
[320528721,1711417149563,-306.29345363,0.00025,7]
[320528722,1711417149585,-645.59251288,0.00025,7]
[320528724,1711417345624,179.53260961,0.00019366,2]
[320528725,1711417347918,156.54768131,0.0002076,2]
[320528726,1711417446283,350.0,0.00023,3]
[320528741,1711417536158,-643.90299712,0.00024999,2]
[320528742,1711417536177,-334.82955143,0.00025,2]
[320528743,1711417536197,-318.49126911,0.00025,2]
[320528744,1711417536217,-149.0257949,0.00025,3]
[320528750,1711417634108,-250.9742051,0.00025,3]
[320528751,1711417634131,-450.0,0.00027,3]
[320528752,1711417634152,-179.32336699,0.000289,2]
[320528753,1711417634174,-500.0,0.00029,3]
[320528754,1711417634202,-179.32336699,0.0002945,2]
[320528755,1711417634224,-167.6007013,0.00029699,2]
[320528756,1711417634244,-334.3973,0.000297,2]
[320528757,1711417634264,-1359.37980641,0.000298,2]
[320528759,1711417641108,-1010.4017835,0.000298,2]
[320528760,1711417647104,-3116.4865951,0.000298,2]
[320528761,1711417650132,-364.46301499,0.000298,2]
[320528762,1711417650153,-375.58097717,0.00029998,2]
[320528763,1711417650173,-300.0,0.00029998,2]
[320528764,1711417650194,-150.0,0.00029998,2]
[320528765,1711417650214,-362.15252798,0.00029998,2]
[320528766,1711417650235,-347.32349192,0.00029999,2]
[320528767,1711417650256,-133.59495297,0.0003,4]
[320528792,1711417746227,-658.0,0.000265,2]
[320528793,1711417746254,-201.24946353,0.0002985,2]
[320528794,1711417746282,-131.00250249,0.000299,30]
[320528796,1711417755098,-18.99749751,0.000299,30]
[320528797,1711417755120,-341.61986348,0.0003,4]
[320528804,1711417831711,-6158.1790749,0.0003,4]
[320528805,1711417831769,-648.56657786,0.0003,4]
[320528806,1711417831882,-8213.63295364,0.0003,4]
[320528807,1711417831993,-1329.28402773,0.0003,4]
[320528808,1711417832053,-1640.61887293,0.0003,4]
[320528809,1711417832066,-6127.228,0.0003,4]
[320528810,1711417832077,-3386.09715096,0.0003,4]
[320528811,1711417832111,-14751.56452538,0.0003,4]
[320528813,1711417832122,-1412.01782103,0.0003,4]
[320528830,1711417837731,-10277.85012528,0.0003,4]
[320528834,1711417837785,-1000.46729614,0.0003,4]
[320528835,1711417837801,-1653.84527002,0.0003,4]
[320528836,1711417837810,-1367.77498888,0.000302,6]
[320528837,1711417837823,-1600.73805412,0.000302,6]
[320528838,1711417837833,-1500.0,0.000307,6]
[320528839,1711417837843,-550.0,0.00031,3]
[320528840,1711417837853,-1500.0,0.000312,6]
[320528841,1711417837863,-150.0,0.0003138,30]
[320528842,1711417837877,-150.0,0.00035,60]
[320528843,1711417837887,-1421.66,0.00035,2]
[320528844,1711417837896,-150.99,0.00035,30]
[320528845,1711417837906,-203.0,0.00038,60]
[320528846,1711417837918,-6766.84724491,0.00038678,2]
[320528847,1711417837959,-8053.94665962,0.00038678,2]
[320528848,1711417837972,-5179.19609547,0.00038678,2]
[320528849,1711417837981,-198.6880857,0.00039938,7]
[320528850,1711417837990,-481.59,0.00041367,2]
[320528851,1711417838000,-179.53260962,0.000429,30]
[320528852,1711417838010,-1024.63,0.00043047,2]
[320528853,1711417838020,-151.23,0.00043103,10]
[320528854,1711417838030,-172.58,0.00043161,2]
[320528855,1711417838041,-172.58,0.00043593,2]
[320528856,1711417838052,-162.89387331,0.00043625,2]
[320528857,1711417838061,-481.59,0.0004363,2]
[320528858,1711417838071,-23900.0,0.00043635,2]
[320528859,1711417838080,-355.61,0.00043685,2]
[320528860,1711417838090,-250.0,0.00043698,110]
[320528861,1711417838099,-260.22,0.00043701,120]
[320528862,1711417838108,-160.0,0.00043705,2]
[320528863,1711417838117,-250.0,0.00043721,2]
[320528864,1711417838126,-250.0,0.00043803,2]
[320528865,1711417838135,-500.0,0.00043908,2]
[320528866,1711417838145,-1028.17085003,0.00043989,30]
[320528867,1711417838154,-567.21,0.00044355,2]
[320528868,1711417838165,-203.0,0.000445,60]
[320528869,1711417838174,-152.92416943,0.00044648,30]
[320528871,1711417838183,-162.89387331,0.0004499,2]
[320528872,1711417838192,-162.89387331,0.0004499,2]
[320528873,1711417838204,-21546.91,0.00045,4]
[320528874,1711417838213,-354.9631374,0.00045,46]
[320528875,1711417838223,-174.73,0.0004514,120]
[320528876,1711417838233,-481.59,0.00045894,2]
[320528877,1711417838243,-600.0,0.00046,47]
[320528878,1711417838253,-1027.0,0.00046304,30]
[320528879,1711417838263,-600.0,0.00047,48]
[320528880,1711417838273,-567.21,0.00047095,2]
[320528881,1711417838289,-403.98,0.00047658,2]
[320528882,1711417838299,-1000.0,0.00048,10]
[320528883,1711417838310,-600.0,0.00048,49]
[320528884,1711417838320,-481.59,0.00048158,2]
[320528885,1711417838329,-1693.95,0.00048356,120]
[320528886,1711417838339,-1693.95,0.00048493,120]
[320528887,1711417838351,-401.64610924,0.000486,2]
[320528888,1711417838361,-1693.95,0.0004863,120]
[320528889,1711417838372,-162.89387331,0.00048657,2]
[320528890,1711417838382,-2966.38820365,0.00048667,2]
[320528891,1711417838392,-1014.0,0.000487,117]
[320528892,1711417838401,-1027.0,0.00048741,30]
[320528893,1711417838412,-1693.95,0.00048767,120]
[320528894,1711417838423,-1693.95,0.00048904,120]
[320528895,1711417838434,-600.0,0.00049,50]
[320528896,1711417838443,-1693.95,0.00049041,120]
[320528897,1711417838454,-2966.38820361,0.00049137,2]
[320528898,1711417838465,-260.22,0.00049164,120]
[320528899,1711417838476,-1693.95,0.00049178,120]
[320528900,1711417838486,-1693.95,0.00049315,120]
[320528901,1711417838497,-1693.95,0.00049452,120]
[320528902,1711417838507,-1237.7328,0.00049508,2]
[320528903,1711417838517,-162.89387331,0.00049579,7]
[320528904,1711417838527,-1693.95,0.00049589,120]
[320528905,1711417838538,-162.89387331,0.0004959,7]
[320528906,1711417838548,-162.89387331,0.0004959,7]
[320528907,1711417838559,-162.89387331,0.0004959,7]
[320528908,1711417838573,-162.89387331,0.0004959,7]
[320528909,1711417838584,-162.89387331,0.0004959,7]
[320528910,1711417838596,-161.032609,0.00049598,61]
[320528911,1711417838608,-161.032609,0.00049598,60]
[320528912,1711417838619,-161.032609,0.00049598,59]
[320528913,1711417838630,-3616.63,0.00049599,120]
[320528914,1711417838642,-100000.0,0.000496,2]
[320528915,1711417838656,-228.834909,0.00049602,120]
[320528916,1711417838668,-2966.38820361,0.00049608,2]
[320528917,1711417838681,-228.834909,0.00049611,120]
[320528918,1711417838693,-228.834909,0.00049616,120]
[320528919,1711417838703,-228.834909,0.0004964,120]
[320528920,1711417838714,-228.834909,0.00049643,120]
[320528921,1711417838723,-228.834909,0.00049661,120]
[320528922,1711417838735,-211.93025046,0.00049662,120]
[320528923,1711417838748,-211.93025046,0.00049667,120]
[320528924,1711417838764,-211.93025046,0.00049671,120]
[320528925,1711417838776,-228.834909,0.00049672,120]
[320528926,1711417838786,-211.93025046,0.00049676,120]
[320528927,1711417838799,-211.93025046,0.00049676,120]
[320528928,1711417838813,-211.93025046,0.00049682,120]
[320528929,1711417838823,-161.032609,0.00049688,75]
[320528930,1711417838835,-211.93025046,0.00049696,120]
[320528931,1711417838846,-161.032609,0.00049698,63]
[320528932,1711417838858,-161.032609,0.00049698,62]
[320528933,1711417838871,-161.032609,0.00049698,61]
[320528934,1711417838881,-1693.95,0.00049726,120]
[320528935,1711417838892,-161.032609,0.00049788,75]
[320528936,1711417838904,-161.032609,0.00049798,65]
[320528937,1711417838917,-161.032609,0.00049798,64]
[320528938,1711417838929,-161.032609,0.00049798,63]
[320528939,1711417838940,-984.03352193,0.000498,120]
[320528940,1711417838952,-983.99,0.000498,120]
[320528941,1711417838963,-983.99,0.000498,120]
[320528942,1711417838976,-983.99,0.000498,120]
[320528943,1711417838987,-983.99,0.000498,120]
[320528944,1711417838997,-983.99,0.000498,120]
[320528945,1711417839009,-983.99,0.000498,120]
[320528946,1711417839018,-983.99,0.000498,120]
[320528947,1711417839031,-983.99,0.000498,120]
[320528948,1711417839043,-983.99,0.000498,120]
[320528949,1711417839053,-983.99,0.000498,120]
[320528950,1711417839065,-983.99,0.000498,120]
[320528951,1711417839077,-983.99,0.000498,120]
[320528952,1711417839088,-983.99,0.000498,120]
[320528953,1711417839101,-983.99,0.000498,120]
[320528954,1711417839111,-983.99,0.000498,120]
[320528955,1711417839122,-289.85950551,0.000498,14]
[320528956,1711417839132,-983.99,0.000498,120]
[320528957,1711417839143,-853.40762031,0.000498,120]
[320528958,1711417839155,-853.21,0.000498,120]
[320528959,1711417839165,-853.21,0.000498,120]
[320528960,1711417839175,-853.21,0.000498,120]
[320528961,1711417839185,-853.21,0.000498,120]
[320528962,1711417839195,-853.21,0.000498,120]
[320528963,1711417839206,-853.21,0.000498,120]
[320528964,1711417839216,-853.21,0.000498,120]
[320528965,1711417839226,-853.21,0.000498,120]
[320528966,1711417839236,-853.21,0.000498,120]
[320528967,1711417839247,-853.21,0.000498,120]
[320528968,1711417839257,-853.21,0.000498,120]
[320528969,1711417839267,-853.21,0.000498,120]
[320528970,1711417839277,-853.21,0.000498,120]
[320528971,1711417839287,-853.21,0.000498,120]
[320528972,1711417839297,-567.21,0.00049834,2]
[320528973,1711417839307,-1693.95,0.00049863,120]
[320528974,1711417839316,-157.032609,0.00049888,76]
[320528975,1711417839326,-151.032609,0.00049898,67]
[320528976,1711417839337,-151.032609,0.00049898,66]
[320528977,1711417839346,-151.032609,0.00049898,65]
[320528978,1711417839357,-195.66821859,0.000499,26]
[320528979,1711417839367,-10770.32761187,0.000499,26]
[320528980,1711417839376,-172.04733588,0.000499,38]
[320528981,1711417839385,-183.45049945,0.000499,26]
[320528982,1711417839395,-152.98459743,0.000499,44]
[320528983,1711417839404,-165.91813235,0.000499,2]
[320528984,1711417839414,-151.032609,0.00049988,76]
[320528985,1711417839424,-232.33197357,0.0004999,2]
[320528986,1711417839434,-501.57582546,0.00049997,2]
[320528987,1711417839444,-151.032609,0.00049998,69]
[320528988,1711417839454,-151.032609,0.00049998,68]
[320528989,1711417839464,-151.032609,0.00049998,67]
[320528990,1711417839474,-393.86709246,0.00049999,10]
[320528991,1711417839484,-1269.07997419,0.00049999,90]
[320528992,1711417839493,-1269.07997419,0.00049999,90]
[320528993,1711417839503,-367.2806174,0.00049999,120]
[320528994,1711417839513,-1314.0,0.00049999,120]
[320528995,1711417839522,-3616.63,0.00049999,120]
[320528997,1711417839532,-348731.5136425,0.0005,120]
[320528998,1711417840194,-1097785.353938,0.0005,120]
[320528999,1711417840204,-12542.89266048,0.0005,30]
[320529000,1711417840215,-260.0,0.0005,56]
[320529001,1711417840225,-1000.0,0.0005,10]
[320529002,1711417840236,-1000.0,0.0005,30]
[320529003,1711417840246,-600.0,0.0005,51]
[320529004,1711417840256,-1693.95,0.0005,120]
[320529005,1711417840266,-152.98459715,0.00050012,44]
[320529006,1711417840276,-1698.0,0.00050053,60]
[320529007,1711417840287,-2966.38820361,0.00050078,2]
[320529008,1711417840297,-152.98459715,0.00050124,45]
[320529009,1711417840307,-1693.95,0.00050136,120]
[320529010,1711417840318,-289.85950545,0.00050166,14]
[320529011,1711417840328,-10770.32761178,0.00050173,26]
[320529012,1711417840339,-152.98459715,0.00050236,45]
[320529013,1711417840349,-1693.95,0.00050273,120]
[320529014,1711417840359,-1314.0,0.00050273,120]
[320529015,1711417840370,-165.91813232,0.00050323,2]
[320529016,1711417840381,-152.98459715,0.00050348,45]
[320529017,1711417840392,-1693.95,0.0005041,120]
[320529018,1711417840403,-481.59,0.00050422,2]
[320529019,1711417840414,-10770.32761178,0.00050445,27]
[320529020,1711417840427,-152.98459715,0.0005046,46]
[320529021,1711417840438,-1668.0,0.00050505,60]
[320529022,1711417840450,-1869.0,0.00050529,60]
[320529023,1711417840461,-289.85950545,0.00050533,14]
[320529024,1711417840472,-1693.95,0.00050547,120]
[320529025,1711417840484,-1314.0,0.00050547,120]
[320529026,1711417840495,-2966.38820361,0.00050548,2]
[320529027,1711417840507,-152.98459715,0.00050572,46]
[320529028,1711417840518,-1693.95,0.00050684,120]
[320529029,1711417840528,-152.98459715,0.00050684,47]
[320529030,1711417840539,-2131.21491708,0.00050718,27]
[320529031,1711417840554,-531.79482725,0.00050718,27]
[320529032,1711417840568,-8107.31786745,0.00050718,27]
[320529033,1711417840579,-165.91813232,0.00050746,2]
[320529034,1711417840590,-174.72,0.00050785,120]
[320529035,1711417840601,-152.98459715,0.00050797,47]
[320529036,1711417840613,-1693.95,0.00050821,120]
[320529037,1711417840966,-1314.0,0.00050821,120]
[320529038,1711417840976,-1135.0,0.00050829,60]
[320529039,1711417840986,-2701.06,0.00050899,120]
[320529040,1711417840996,-289.85950545,0.00050899,14]
[320529041,1711417841006,-1025.83181774,0.000509,120]
[320529042,1711417841016,-166.442834,0.000509,120]
[320529043,1711417841080,-89.3809445,0.000509,120]
[320529044,1711417841093,-770.00803914,0.000509,120]
[320529045,1711417841103,-1025.83181764,0.000509,120]
[320529046,1711417841112,-1025.83181764,0.000509,120]
[320529047,1711417841122,-1025.83181764,0.000509,120]
[320529048,1711417841131,-1025.83181764,0.000509,120]
[320529049,1711417841142,-1025.83181764,0.000509,120]
[320529050,1711417841152,-967.74592829,0.000509,120]
[320529051,1711417841172,-58.08588935,0.000509,120]
[320529052,1711417841182,-152.98459715,0.00050909,48]
[320529053,1711417841193,-235.15095039,0.00050958,120]
[320529054,1711417841226,-1458.79904961,0.00050958,120]
[320529055,1711417841236,-10770.32761178,0.00050991,27]
[320529056,1711417841247,-260.0,0.00051,51]
[320529057,1711417841258,-935.0454936,0.00051,30]
[320529058,1711417841268,-1642.98712636,0.00051,34]
[320529059,1711417841976,-401.64610917,0.00049078,2]
[320529060,1711417841986,-737.21043315,0.00049999,120]
[320529061,1711417842079,-460.10966501,0.00049999,120]